[Event "*** Titled Tuesday Blitz"]
[Site "Chess.com"]
[Date "2020.05.05"]
[Round "4"]
[White "Larina_Marija"]
[Black "ChelsieMonica"]
[Result "0-1"]
[WhiteElo "2146"]
[BlackElo "2337"]
[TimeControl "180+1"]
[EndTime "10:41:41 PDT"]
[Termination "ChelsieMonica won by checkmate"]

1. e4 {[%clk 0:03:00]} 1... e5 {[%clk 0:02:57]} 2. Nf3 {[%clk 0:02:59.8]} 2...
Nc6 {[%clk 0:02:56.8]} 3. Nc3 {[%clk 0:02:59.8]} 3... Nf6 {[%clk 0:02:54.4]} 4.
Bb5 {[%clk 0:03:00]} 4... d6 {[%clk 0:02:49.7]} 5. d4 {[%clk 0:03:00]} 5... exd4
{[%clk 0:02:49.7]} 6. Nxd4 {[%clk 0:03:00.5]} 6... Bd7 {[%clk 0:02:50.1]} 7.
Bxc6 {[%clk 0:03:00.9]} 7... bxc6 {[%clk 0:02:50]} 8. Qf3 {[%clk 0:03:01.4]}
8... Be7 {[%clk 0:02:46]} 9. e5 {[%clk 0:03:01.1]} 9... dxe5 {[%clk 0:02:32.9]}
10. Nxc6 {[%clk 0:03:01]} 10... Bxc6 {[%clk 0:02:29.5]} 11. Qxc6+ {[%clk
0:03:01.9]} 11... Nd7 {[%clk 0:02:29.5]} 12. Nb5 {[%clk 0:02:51.6]} 12... O-O
{[%clk 0:02:27.5]} 13. Qxc7 {[%clk 0:02:43.8]} 13... a6 {[%clk 0:01:49.6]} 14.
Qxd8 {[%clk 0:02:41.7]} 14... Raxd8 {[%clk 0:01:50.5]} 15. Nc3 {[%clk
0:02:33.9]} 15... Bb4 {[%clk 0:01:50.1]} 16. Bd2 {[%clk 0:02:33.7]} 16... Nb6
{[%clk 0:01:44.8]} 17. O-O-O {[%clk 0:02:27.2]} 17... Nc4 {[%clk 0:01:44.3]} 18.
Be1 {[%clk 0:02:20.6]} 18... Rb8 {[%clk 0:01:28.2]} 19. Na4 {[%clk 0:02:12.1]}
19... Be7 {[%clk 0:01:04.7]} 20. Rd7 {[%clk 0:01:59.9]} 20... Bg5+ {[%clk
0:01:04.6]} 21. Kb1 {[%clk 0:01:54.2]} 21... Na3+ {[%clk 0:01:04.2]} 22. Ka1
{[%clk 0:01:50.8]} 22... Nxc2+ {[%clk 0:01:05.1]} 23. Kb1 {[%clk 0:01:51.2]}
23... Rfc8 {[%clk 0:01:01.1]} 24. Bc3 {[%clk 0:01:43.4]} 24... Na3+ {[%clk
0:00:58.5]} 25. Ka1 {[%clk 0:01:43.3]} 25... Nc2+ {[%clk 0:00:50.3]} 26. Kb1
{[%clk 0:01:43]} 26... Na3+ {[%clk 0:00:46.5]} 27. Ka1 {[%clk 0:01:43.1]} 27...
Nb5 {[%clk 0:00:33.3]} 28. Bxe5 {[%clk 0:01:41.9]} 28... Rd8 {[%clk 0:00:31.2]}
29. Rhd1 {[%clk 0:01:39.7]} 29... Rxd7 {[%clk 0:00:30.2]} 30. Rxd7 {[%clk
0:01:40.1]} 30... Rc8 {[%clk 0:00:30.6]} 31. Rd1 {[%clk 0:01:34.3]} 31... f6
{[%clk 0:00:29.9]} 32. Bg3 {[%clk 0:01:20.5]} 32... f5 {[%clk 0:00:28.1]} 33. f4
{[%clk 0:01:19.9]} 33... Bf6 {[%clk 0:00:28]} 34. Kb1 {[%clk 0:01:16]} 34... Rb8
{[%clk 0:00:27]} 35. Be1 {[%clk 0:01:08.5]} 35... Na3+ {[%clk 0:00:26.6]} 36.
Kc1 {[%clk 0:01:00.2]} 36... Rc8+ {[%clk 0:00:26.1]} 37. Nc3 {[%clk 0:00:56.3]}
37... Nc4 {[%clk 0:00:26.4]} 38. Rd3 {[%clk 0:00:45]} 38... Rb8 {[%clk
0:00:26.5]} 39. b3 {[%clk 0:00:43.8]} 39... Na3 {[%clk 0:00:26.7]} 40. g3 {[%clk
0:00:38.6]} 40... Rc8 {[%clk 0:00:26.8]} 41. Kb2 {[%clk 0:00:36.9]} 41... Nb5
{[%clk 0:00:27.1]} 42. a4 {[%clk 0:00:34.5]} 42... Nc7 {[%clk 0:00:26]} 43. Ka2
{[%clk 0:00:29.6]} 43... Ne6 {[%clk 0:00:25.7]} 44. Re3 {[%clk 0:00:15.9]} 44...
Kf7 {[%clk 0:00:23.4]} 45. Bd2 {[%clk 0:00:11.5]} 45... Bd4 {[%clk 0:00:23.1]}
46. Rd3 {[%clk 0:00:11.2]} 46... Bf6 {[%clk 0:00:22.1]} 47. h3 {[%clk
0:00:10.4]} 47... h5 {[%clk 0:00:21.6]} 48. Kb2 {[%clk 0:00:07.2]} 48... Nc5
{[%clk 0:00:21.5]} 49. Re3 {[%clk 0:00:06.2]} 49... Rb8 {[%clk 0:00:21.1]} 50.
Ka2 {[%clk 0:00:03.7]} 50... Nxb3 {[%clk 0:00:20.5]} 51. Be1 {[%clk 0:00:02.5]}
51... Nc1+ {[%clk 0:00:20.2]} 52. Ka3 {[%clk 0:00:01.4]} 52... Rb3# {[%clk
0:00:20]} 0-1

[Event "*** Titled Tuesday Blitz"]
[Site "Chess.com"]
[Date "2020.05.05"]
[Round "4"]
[White "Aygehovit1992"]
[Black "Oglob71"]
[Result "1-0"]
[WhiteElo "2678"]
[BlackElo "2474"]
[TimeControl "180+1"]
[EndTime "10:41:43 PDT"]
[Termination "Aygehovit1992 won by checkmate"]

1. e4 {[%clk 0:03:00.9]} 1... c5 {[%clk 0:02:54.2]} 2. Nf3 {[%clk 0:02:57.8]}
2... e6 {[%clk 0:02:53.9]} 3. d4 {[%clk 0:02:55.6]} 3... cxd4 {[%clk 0:02:54.1]}
4. Nxd4 {[%clk 0:02:56.5]} 4... a6 {[%clk 0:02:54.6]} 5. Nc3 {[%clk 0:02:55.9]}
5... Qc7 {[%clk 0:02:54.8]} 6. Be2 {[%clk 0:02:55.5]} 6... Nf6 {[%clk
0:02:54.1]} 7. O-O {[%clk 0:02:55.4]} 7... Bb4 {[%clk 0:02:53.4]} 8. Qd3 {[%clk
0:02:45.3]} 8... Nc6 {[%clk 0:02:53.4]} 9. Nxc6 {[%clk 0:02:44.4]} 9... dxc6
{[%clk 0:02:53.1]} 10. Bg5 {[%clk 0:02:41.4]} 10... e5 {[%clk 0:02:51]} 11. Bxf6
{[%clk 0:02:37.5]} 11... gxf6 {[%clk 0:02:50.5]} 12. Nd1 {[%clk 0:02:30.3]}
12... Be6 {[%clk 0:02:48]} 13. Qf3 {[%clk 0:02:27.9]} 13... Qe7 {[%clk
0:02:44.8]} 14. Ne3 {[%clk 0:02:26.3]} 14... h5 {[%clk 0:02:43.5]} 15. Bc4
{[%clk 0:02:19.8]} 15... h4 {[%clk 0:02:38.6]} 16. Nf5 {[%clk 0:02:13.8]} 16...
Bxf5 {[%clk 0:02:26.6]} 17. Qxf5 {[%clk 0:02:12.3]} 17... h3 {[%clk 0:02:25.3]}
18. g3 {[%clk 0:02:12.5]} 18... b5 {[%clk 0:01:59.7]} 19. Be2 {[%clk 0:01:57.6]}
19... Qe6 {[%clk 0:01:55.4]} 20. Bg4 {[%clk 0:01:57.3]} 20... Qxf5 {[%clk
0:01:55.4]} 21. Bxf5 {[%clk 0:01:58.2]} 21... Rd8 {[%clk 0:01:48.9]} 22. Rfd1
{[%clk 0:01:58]} 22... Bd2 {[%clk 0:01:46.7]} 23. Kf1 {[%clk 0:01:53.8]} 23...
Ke7 {[%clk 0:01:46.8]} 24. Ke2 {[%clk 0:01:52.9]} 24... Ba5 {[%clk 0:01:43.7]}
25. Rxd8 {[%clk 0:01:50.9]} 25... Rxd8 {[%clk 0:01:43.5]} 26. Rd1 {[%clk
0:01:50.2]} 26... Bb6 {[%clk 0:01:19.7]} 27. Rxd8 {[%clk 0:01:37.3]} 27... Bxd8
{[%clk 0:01:18.9]} 28. Bxh3 {[%clk 0:01:37.4]} 28... a5 {[%clk 0:01:19.5]} 29.
Bc8 {[%clk 0:01:33.8]} 29... Bb6 {[%clk 0:01:08.3]} 30. h4 {[%clk 0:01:21.9]}
30... b4 {[%clk 0:01:08.1]} 31. h5 {[%clk 0:01:17.9]} 31... Bd4 {[%clk
0:01:08.4]} 32. b3 {[%clk 0:01:17]} 32... Kf8 {[%clk 0:01:07.8]} 33. Bd7 {[%clk
0:01:12.8]} 33... c5 {[%clk 0:01:07.2]} 34. Bc6 {[%clk 0:01:12.2]} 34... Kg7
{[%clk 0:01:06.9]} 35. Bd5 {[%clk 0:01:12.4]} 35... Bb2 {[%clk 0:00:56.4]} 36.
f3 {[%clk 0:01:09.1]} 36... Bc1 {[%clk 0:00:53.5]} 37. Kd3 {[%clk 0:01:08.6]}
37... Bg5 {[%clk 0:00:29.2]} 38. Kc4 {[%clk 0:01:06.7]} 38... Be3 {[%clk
0:00:29.6]} 39. Kb5 {[%clk 0:01:02.8]} 39... Bf2 {[%clk 0:00:30.1]} 40. g4
{[%clk 0:01:01.5]} 40... Bd4 {[%clk 0:00:26.7]} 41. Kxa5 {[%clk 0:01:00.5]}
41... Be3 {[%clk 0:00:25.2]} 42. Kb5 {[%clk 0:00:57.5]} 42... Bd4 {[%clk
0:00:25.2]} 43. Kc6 {[%clk 0:00:57.4]} 43... Be3 {[%clk 0:00:23.9]} 44. Kd7
{[%clk 0:00:57.5]} 44... Bd4 {[%clk 0:00:22.4]} 45. Ke7 {[%clk 0:00:56.7]} 45...
Be3 {[%clk 0:00:22.9]} 46. Bxf7 {[%clk 0:00:55.9]} 46... Bd4 {[%clk 0:00:23.1]}
47. Bc4 {[%clk 0:00:53]} 47... Be3 {[%clk 0:00:23.1]} 48. Kd6 {[%clk 0:00:53]}
48... Bd4 {[%clk 0:00:23.3]} 49. Ke6 {[%clk 0:00:51.9]} 49... Be3 {[%clk
0:00:23.5]} 50. Kf5 {[%clk 0:00:51.9]} 50... Bd2 {[%clk 0:00:23.6]} 51. Ke6
{[%clk 0:00:49.2]} 51... Be3 {[%clk 0:00:24]} 52. Kd5 {[%clk 0:00:49.3]} 52...
Kh6 {[%clk 0:00:23.9]} 53. Kd6 {[%clk 0:00:46.8]} 53... Kg7 {[%clk 0:00:22.4]}
54. Be6 {[%clk 0:00:40.6]} 54... Bd4 {[%clk 0:00:21.5]} 55. Kd5 {[%clk 0:00:38]}
55... Be3 {[%clk 0:00:21.5]} 56. g5 {[%clk 0:00:33]} 56... fxg5 {[%clk
0:00:17.3]} 57. Kxe5 {[%clk 0:00:33.7]} 57... Bd4+ {[%clk 0:00:17.9]} 58. Kf5
{[%clk 0:00:30.1]} 58... Kh6 {[%clk 0:00:17.7]} 59. Bf7 {[%clk 0:00:29.8]} 59...
Be3 {[%clk 0:00:16.6]} 60. e5 {[%clk 0:00:29.7]} 60... Kg7 {[%clk 0:00:17]} 61.
e6 {[%clk 0:00:29.7]} 61... Kf8 {[%clk 0:00:16.6]} 62. h6 {[%clk 0:00:29.5]}
62... g4 {[%clk 0:00:17.1]} 63. h7 {[%clk 0:00:27.7]} 63... Kg7 {[%clk
0:00:16.3]} 64. e7 {[%clk 0:00:24.6]} 64... gxf3 {[%clk 0:00:14.1]} 65. e8=Q
{[%clk 0:00:24.4]} 65... f2 {[%clk 0:00:13.6]} 66. h8=Q# {[%clk 0:00:24.6]} 1-0

[Event "*** Titled Tuesday Blitz"]
[Site "Chess.com"]
[Date "2020.05.05"]
[Round "4"]
[White "Grandmaster2B"]
[Black "kleinebeer98"]
[Result "0-1"]
[WhiteElo "2477"]
[BlackElo "2688"]
[TimeControl "180+1"]
[EndTime "10:41:44 PDT"]
[Termination "kleinebeer98 won by resignation"]

1. e4 {[%clk 0:03:00.9]} 1... e5 {[%clk 0:02:53.7]} 2. Nf3 {[%clk 0:03:01.1]}
2... Nc6 {[%clk 0:02:48.8]} 3. Bb5 {[%clk 0:03:01.6]} 3... f5 {[%clk 0:02:48.8]}
4. d3 {[%clk 0:03:01]} 4... fxe4 {[%clk 0:02:47.9]} 5. dxe4 {[%clk 0:03:01.9]}
5... Nf6 {[%clk 0:02:48.3]} 6. O-O {[%clk 0:03:02.5]} 6... d6 {[%clk 0:02:46.8]}
7. h3 {[%clk 0:03:01.1]} 7... Be7 {[%clk 0:02:46.1]} 8. Re1 {[%clk 0:03:00.7]}
8... O-O {[%clk 0:02:46.3]} 9. Nc3 {[%clk 0:03:00.6]} 9... Kh8 {[%clk
0:02:46.4]} 10. Nd5 {[%clk 0:02:59.8]} 10... Be6 {[%clk 0:02:27.4]} 11. c3
{[%clk 0:02:52.4]} 11... Rc8 {[%clk 0:02:05.4]} 12. Ba4 {[%clk 0:02:45.8]} 12...
Qe8 {[%clk 0:02:02.2]} 13. Bc2 {[%clk 0:02:38.9]} 13... Bd8 {[%clk 0:01:55.4]}
14. Ng5 {[%clk 0:02:30.2]} 14... Bg8 {[%clk 0:01:52.9]} 15. Ne3 {[%clk
0:02:27.5]} 15... Qg6 {[%clk 0:01:44]} 16. Nf5 {[%clk 0:02:11.7]} 16... Nh5
{[%clk 0:01:28.1]} 17. Qg4 {[%clk 0:02:04.9]} 17... Nf6 {[%clk 0:01:05.5]} 18.
Qd1 {[%clk 0:01:51.8]} 18... h6 {[%clk 0:00:59.4]} 19. Nf3 {[%clk 0:01:39.5]}
19... Bh7 {[%clk 0:00:52]} 20. N3h4 {[%clk 0:01:28.2]} 20... Qe8 {[%clk
0:00:51.8]} 21. Re3 {[%clk 0:01:25]} 21... Nh5 {[%clk 0:00:45.7]} 22. Qg4 {[%clk
0:00:44.3]} 22... Bg5 {[%clk 0:00:35.4]} 23. Rf3 {[%clk 0:00:38]} 23... Nf6
{[%clk 0:00:33.3]} 24. Qg3 {[%clk 0:00:34.1]} 24... Nh5 {[%clk 0:00:33.5]} 25.
Qg4 {[%clk 0:00:34.2]} 25... Bxc1 {[%clk 0:00:27.4]} 26. Rxc1 {[%clk 0:00:35.1]}
26... Rg8 {[%clk 0:00:09.9]} 27. Bb3 {[%clk 0:00:32.5]} 27... Nf6 {[%clk
0:00:08]} 28. Qg3 {[%clk 0:00:18.9]} 28... Nxe4 {[%clk 0:00:08.3]} 29. Qg4
{[%clk 0:00:15.7]} 29... Nd2 {[%clk 0:00:08.7]} 30. Bxg8 {[%clk 0:00:07.9]}
30... Nxf3+ {[%clk 0:00:08.9]} 31. gxf3 {[%clk 0:00:02.9]} 31... Qxg8 {[%clk
0:00:07.9]} 32. b4 {[%clk 0:00:02]} 32... Rf8 {[%clk 0:00:07.5]} 33. b5 {[%clk
0:00:01.7]} 33... Bxf5 {[%clk 0:00:06.6]} 34. Nxf5 {[%clk 0:00:01.5]} 34... Qf7
{[%clk 0:00:06.7]} 35. bxc6 {[%clk 0:00:01.5]} 35... Qxf5 {[%clk 0:00:06.2]} 36.
Qxf5 {[%clk 0:00:02.4]} 36... Rxf5 {[%clk 0:00:06.9]} 37. cxb7 {[%clk
0:00:03.3]} 37... Rf8 {[%clk 0:00:07.4]} 38. Rb1 {[%clk 0:00:04.1]} 38... Rb8
{[%clk 0:00:07.6]} 39. Kg2 {[%clk 0:00:05]} 39... g6 {[%clk 0:00:06.7]} 40. a4
{[%clk 0:00:05.4]} 40... Kg7 {[%clk 0:00:06.9]} 41. a5 {[%clk 0:00:05.7]} 41...
a6 {[%clk 0:00:07.3]} 42. c4 {[%clk 0:00:05.4]} 42... Kf6 {[%clk 0:00:07.1]} 43.
Kg3 {[%clk 0:00:05.7]} 43... Ke6 {[%clk 0:00:07.4]} 44. f4 {[%clk 0:00:05.8]}
44... exf4+ {[%clk 0:00:07]} 45. Kxf4 {[%clk 0:00:06.7]} 45... Kd7 {[%clk
0:00:07.9]} 46. Ke4 {[%clk 0:00:07.2]} 46... Kc6 {[%clk 0:00:08.2]} 47. Rg1
{[%clk 0:00:07.8]} 47... g5 {[%clk 0:00:08.1]} 48. h4 {[%clk 0:00:08]} 48...
Re8+ {[%clk 0:00:06.9]} 49. Kd3 {[%clk 0:00:05.2]} 49... gxh4 {[%clk 0:00:05.3]}
50. Rh1 {[%clk 0:00:05.8]} 50... Kxb7 {[%clk 0:00:05.4]} 51. Rxh4 {[%clk
0:00:06.5]} 51... Rf8 {[%clk 0:00:05.5]} 52. Rxh6 {[%clk 0:00:06]} 52... Rxf2
{[%clk 0:00:05.7]} 53. Rh5 {[%clk 0:00:03]} 53... Kc6 {[%clk 0:00:05.8]} 54. Ke3
{[%clk 0:00:02.9]} 54... Rb2 {[%clk 0:00:05.4]} 55. Kd4 {[%clk 0:00:02.7]} 55...
Rd2+ {[%clk 0:00:05.1]} 56. Kc3 {[%clk 0:00:02.9]} 56... Re2 {[%clk 0:00:05.3]}
57. Kd3 {[%clk 0:00:03.2]} 57... Re5 {[%clk 0:00:05.6]} 58. Rh6 {[%clk
0:00:01.4]} 58... Rxa5 {[%clk 0:00:05.5]} 59. Kd4 {[%clk 0:00:02.3]} 59... Ra1
{[%clk 0:00:05.3]} 60. c5 {[%clk 0:00:02.2]} 60... Rd1+ {[%clk 0:00:05.2]} 61.
Kc4 {[%clk 0:00:02.5]} 61... Rc1+ {[%clk 0:00:05.2]} 0-1

[Event "*** Titled Tuesday Blitz"]
[Site "Chess.com"]
[Date "2020.05.05"]
[Round "4"]
[White "neurisdr"]
[Black "stolencandy13"]
[Result "1-0"]
[WhiteElo "2797"]
[BlackElo "2545"]
[TimeControl "180+1"]
[EndTime "10:41:45 PDT"]
[Termination "neurisdr won by checkmate"]

1. e4 {[%clk 0:03:00.9]} 1... c6 {[%clk 0:02:59]} 2. c4 {[%clk 0:02:59.9]} 2...
d5 {[%clk 0:02:59.9]} 3. cxd5 {[%clk 0:02:59.1]} 3... cxd5 {[%clk 0:02:57.4]} 4.
exd5 {[%clk 0:02:58.3]} 4... Nf6 {[%clk 0:02:57.5]} 5. Nc3 {[%clk 0:02:58]} 5...
Nxd5 {[%clk 0:02:52.7]} 6. Nf3 {[%clk 0:02:57.9]} 6... Nc6 {[%clk 0:02:50.6]} 7.
d4 {[%clk 0:02:56.7]} 7... Bg4 {[%clk 0:02:47.9]} 8. Bb5 {[%clk 0:02:55.6]} 8...
Rc8 {[%clk 0:02:44.7]} 9. h3 {[%clk 0:02:54.1]} 9... Bxf3 {[%clk 0:02:35.9]} 10.
Qxf3 {[%clk 0:02:52.9]} 10... e6 {[%clk 0:02:36.6]} 11. O-O {[%clk 0:02:51.3]}
11... Be7 {[%clk 0:02:33.5]} 12. Nxd5 {[%clk 0:02:43.8]} 12... Qxd5 {[%clk
0:02:31]} 13. Qxd5 {[%clk 0:02:43.1]} 13... exd5 {[%clk 0:02:31.8]} 14. Be3
{[%clk 0:02:43]} 14... O-O {[%clk 0:02:28.2]} 15. Rac1 {[%clk 0:02:41.9]} 15...
Bf6 {[%clk 0:02:23.9]} 16. Rfd1 {[%clk 0:02:39.8]} 16... a6 {[%clk 0:02:18.1]}
17. Be2 {[%clk 0:02:38.6]} 17... Nb4 {[%clk 0:02:04.3]} 18. Rc5 {[%clk
0:02:31.4]} 18... Rxc5 {[%clk 0:01:51]} 19. dxc5 {[%clk 0:02:30.2]} 19... Bxb2
{[%clk 0:01:51.7]} 20. Rb1 {[%clk 0:02:29.2]} 20... Ba3 {[%clk 0:01:47.5]} 21.
Bd1 {[%clk 0:01:47.2]} 21... Nxa2 {[%clk 0:01:19.5]} 22. Rxb7 {[%clk 0:01:43.4]}
22... Nc3 {[%clk 0:01:10.5]} 23. Bg4 {[%clk 0:01:37.3]} 23... f5 {[%clk
0:01:05.6]} 24. Bf3 {[%clk 0:01:37]} 24... Ne4 {[%clk 0:01:03]} 25. c6 {[%clk
0:01:33.3]} 25... Rc8 {[%clk 0:01:02.9]} 26. c7 {[%clk 0:01:32.5]} 26... Kf7
{[%clk 0:00:59.8]} 27. Bd1 {[%clk 0:01:24.2]} 27... Bc5 {[%clk 0:00:54.6]} 28.
Bb3 {[%clk 0:01:14.4]} 28... Ke6 {[%clk 0:00:48.1]} 29. Bxc5 {[%clk 0:00:54.9]}
29... Nxc5 {[%clk 0:00:46]} 30. Rb6+ {[%clk 0:00:54.3]} 30... Kd7 {[%clk
0:00:37.1]} 31. Bxd5 {[%clk 0:00:53.7]} 31... Rxc7 {[%clk 0:00:35.4]} 32. Rb8
{[%clk 0:00:53.6]} 32... Kd6 {[%clk 0:00:33.5]} 33. Ba2 {[%clk 0:00:53.3]} 33...
Ra7 {[%clk 0:00:31.2]} 34. Rd8+ {[%clk 0:00:53.7]} 34... Kc6 {[%clk 0:00:28.9]}
35. Rc8+ {[%clk 0:00:52.8]} 35... Kb5 {[%clk 0:00:26.4]} 36. Rb8+ {[%clk
0:00:50.4]} 36... Rb7 {[%clk 0:00:24.3]} 37. Rf8 {[%clk 0:00:50.1]} 37... g6
{[%clk 0:00:23.6]} 38. g4 {[%clk 0:00:50.6]} 38... fxg4 {[%clk 0:00:23.4]} 39.
hxg4 {[%clk 0:00:50]} 39... a5 {[%clk 0:00:23.4]} 40. f4 {[%clk 0:00:50]} 40...
a4 {[%clk 0:00:18.4]} 41. f5 {[%clk 0:00:50]} 41... gxf5 {[%clk 0:00:18.7]} 42.
gxf5 {[%clk 0:00:50.1]} 42... a3 {[%clk 0:00:13.1]} 43. f6 {[%clk 0:00:49.7]}
43... Ne4 {[%clk 0:00:11.7]} 44. f7 {[%clk 0:00:48.5]} 44... Ng5 {[%clk
0:00:10.9]} 45. Bd5 {[%clk 0:00:45.2]} 45... Rb6 {[%clk 0:00:06]} 46. Rh8 {[%clk
0:00:37]} 46... Nxf7 {[%clk 0:00:05.7]} 47. Bxf7 {[%clk 0:00:37.2]} 47... Ra6
{[%clk 0:00:04.2]} 48. Ba2 {[%clk 0:00:36.8]} 48... Kb4 {[%clk 0:00:04.5]} 49.
Rc8 {[%clk 0:00:36]} 49... Ra5 {[%clk 0:00:03.4]} 50. Rc4+ {[%clk 0:00:36.3]}
50... Kb5 {[%clk 0:00:03.3]} 51. Rh4 {[%clk 0:00:36.2]} 51... Ra4 {[%clk
0:00:03.8]} 52. Rh5+ {[%clk 0:00:35.2]} 52... Kb6 {[%clk 0:00:04.4]} 53. Rh6+
{[%clk 0:00:35.2]} 53... Kb5 {[%clk 0:00:04.7]} 54. Rxh7 {[%clk 0:00:35.3]}
54... Rb4 {[%clk 0:00:05.2]} 55. Ra7 {[%clk 0:00:34]} 55... Ra4 {[%clk
0:00:03.9]} 56. Rb7+ {[%clk 0:00:33.9]} 56... Kc5 {[%clk 0:00:04.1]} 57. Rb3
{[%clk 0:00:33.8]} 57... Rg4+ {[%clk 0:00:02.9]} 58. Kf2 {[%clk 0:00:33.6]}
58... Ra4 {[%clk 0:00:03.8]} 59. Ke3 {[%clk 0:00:33.2]} 59... Ra5 {[%clk
0:00:03.6]} 60. Rd3 {[%clk 0:00:32.8]} 60... Kb4 {[%clk 0:00:03.5]} 61. Rb3+
{[%clk 0:00:30.1]} 61... Ka4 {[%clk 0:00:03.5]} 62. Rb8 {[%clk 0:00:28.6]} 62...
Rb5 {[%clk 0:00:03.6]} 63. Ra8+ {[%clk 0:00:28.2]} 63... Ra5 {[%clk 0:00:04.1]}
64. Rc8 {[%clk 0:00:22.3]} 64... Rb5 {[%clk 0:00:04]} 65. Kd4 {[%clk 0:00:21.9]}
65... Rb2 {[%clk 0:00:04]} 66. Bc4 {[%clk 0:00:21.8]} 66... a2 {[%clk
0:00:03.2]} 67. Kc3 {[%clk 0:00:21.3]} 67... Rh2 {[%clk 0:00:02.4]} 68. Ra8#
{[%clk 0:00:21]} 1-0

[Event "*** Titled Tuesday Blitz"]
[Site "Chess.com"]
[Date "2020.05.05"]
[Round "4"]
[White "mshuaau0"]
[Black "WeAintSurePal"]
[Result "0-1"]
[WhiteElo "2112"]
[BlackElo "2397"]
[TimeControl "180+1"]
[EndTime "10:41:45 PDT"]
[Termination "WeAintSurePal won by resignation"]

1. e4 {[%clk 0:03:00.9]} 1... c5 {[%clk 0:02:55.6]} 2. Nf3 {[%clk 0:03:00.4]}
2... e6 {[%clk 0:02:54.2]} 3. Nc3 {[%clk 0:02:59.6]} 3... a6 {[%clk 0:02:50.8]}
4. a4 {[%clk 0:02:56.6]} 4... Qc7 {[%clk 0:02:47]} 5. Bc4 {[%clk 0:02:54.1]}
5... Nc6 {[%clk 0:02:46.3]} 6. d3 {[%clk 0:02:53.7]} 6... Nf6 {[%clk 0:02:46.1]}
7. Bg5 {[%clk 0:02:52.3]} 7... Be7 {[%clk 0:02:45.6]} 8. h3 {[%clk 0:02:50.4]}
8... b6 {[%clk 0:02:41.1]} 9. Qd2 {[%clk 0:02:47.6]} 9... Bb7 {[%clk 0:02:40.5]}
10. Bf4 {[%clk 0:02:43.6]} 10... Bd6 {[%clk 0:02:37.9]} 11. Bxd6 {[%clk
0:02:35.7]} 11... Qxd6 {[%clk 0:02:37.4]} 12. O-O {[%clk 0:02:33.8]} 12... O-O
{[%clk 0:02:36.1]} 13. Rfe1 {[%clk 0:02:32.7]} 13... Ne5 {[%clk 0:02:35.1]} 14.
Nxe5 {[%clk 0:02:31.1]} 14... Qxe5 {[%clk 0:02:35]} 15. Ne2 {[%clk 0:02:26.4]}
15... d5 {[%clk 0:02:32.3]} 16. exd5 {[%clk 0:02:25.2]} 16... Nxd5 {[%clk
0:02:32.2]} 17. Nc3 {[%clk 0:02:09.4]} 17... Qh5 {[%clk 0:02:21.7]} 18. Bxd5
{[%clk 0:02:01.6]} 18... Bxd5 {[%clk 0:02:17.8]} 19. Nxd5 {[%clk 0:02:00.2]}
19... Qxd5 {[%clk 0:02:17.5]} 20. Qc3 {[%clk 0:01:54.6]} 20... Rad8 {[%clk
0:02:16.4]} 21. Re5 {[%clk 0:01:52.4]} 21... Qd4 {[%clk 0:02:16.5]} 22. Re4
{[%clk 0:01:39.3]} 22... Qxc3 {[%clk 0:02:11]} 23. bxc3 {[%clk 0:01:40.2]} 23...
b5 {[%clk 0:02:08.4]} 24. axb5 {[%clk 0:01:37.8]} 24... axb5 {[%clk 0:02:08.6]}
25. Ra5 {[%clk 0:01:37]} 25... Rb8 {[%clk 0:02:07.8]} 26. Re5 {[%clk 0:01:31.5]}
26... Rfc8 {[%clk 0:02:03.8]} 27. Kf1 {[%clk 0:01:31.3]} 27... g6 {[%clk
0:02:04.1]} 28. g4 {[%clk 0:01:24.9]} 28... h6 {[%clk 0:02:03.5]} 29. f4 {[%clk
0:01:24.3]} 29... Kg7 {[%clk 0:02:03.2]} 30. g5 {[%clk 0:01:24.6]} 30... hxg5
{[%clk 0:01:59.1]} 31. fxg5 {[%clk 0:01:25.5]} 31... Rb7 {[%clk 0:01:58.3]} 32.
Ke2 {[%clk 0:01:24.9]} 32... Kf8 {[%clk 0:01:58]} 33. Kd2 {[%clk 0:01:22.5]}
33... Ke7 {[%clk 0:01:57.5]} 34. d4 {[%clk 0:00:59.9]} 34... cxd4 {[%clk
0:01:51.2]} 35. cxd4 {[%clk 0:00:59.8]} 35... Rd8 {[%clk 0:01:44.9]} 36. Ke3
{[%clk 0:00:51.5]} 36... Rc7 {[%clk 0:01:40]} 37. Rexb5 {[%clk 0:00:50.7]} 37...
Rxc2 {[%clk 0:01:38.1]} 38. Rb7+ {[%clk 0:00:50.1]} 38... Rd7 {[%clk 0:01:33.4]}
39. Rxd7+ {[%clk 0:00:41.8]} 39... Kxd7 {[%clk 0:01:34.3]} 40. Ra7+ {[%clk
0:00:41.2]} 40... Ke8 {[%clk 0:01:34.1]} 41. Kf4 {[%clk 0:00:36]} 41... Kf8
{[%clk 0:01:26.4]} 42. h4 {[%clk 0:00:32.1]} 42... Kg7 {[%clk 0:01:25]} 43. Rd7
{[%clk 0:00:30.4]} 43... Rc4 {[%clk 0:01:22.1]} 44. Ke5 {[%clk 0:00:29.2]} 44...
Ra4 {[%clk 0:01:19.9]} 45. Ke4 {[%clk 0:00:28.3]} 45... Ra1 {[%clk 0:01:17.2]}
46. Kf4 {[%clk 0:00:26.2]} 46... Rd1 {[%clk 0:01:14.3]} 47. Rd6 {[%clk
0:00:22.6]} 47... Rd3 {[%clk 0:01:11.9]} 48. Kg4 {[%clk 0:00:22.6]} 48... Rd2
{[%clk 0:01:08.7]} 49. Kf4 {[%clk 0:00:22.9]} 49... Kf8 {[%clk 0:01:06.4]} 50.
Rd7 {[%clk 0:00:21.9]} 50... Ke8 {[%clk 0:01:04.2]} 51. Ke3 {[%clk 0:00:07.4]}
51... Rh2 {[%clk 0:01:02.8]} 52. Rb7 {[%clk 0:00:06.2]} 52... Rxh4 {[%clk
0:01:02.3]} 53. Ra7 {[%clk 0:00:05.6]} 53... Rg4 {[%clk 0:00:59.5]} 54. Ra5
{[%clk 0:00:06.1]} 54... Rg1 {[%clk 0:00:57.8]} 55. Kf2 {[%clk 0:00:05.8]} 55...
Rd1 {[%clk 0:00:54.7]} 56. Ke3 {[%clk 0:00:06.1]} 56... Kf8 {[%clk 0:00:53.1]}
57. Ke4 {[%clk 0:00:06.3]} 57... Kg7 {[%clk 0:00:52.6]} 58. Ke5 {[%clk
0:00:06.7]} 58... Rg1 {[%clk 0:00:50.6]} 59. Kd6 {[%clk 0:00:06.8]} 59... Rg4
{[%clk 0:00:48.9]} 60. d5 {[%clk 0:00:02.1]} 60... Rxg5 {[%clk 0:00:46.1]} 61.
dxe6 {[%clk 0:00:02.3]} 61... Rxa5 {[%clk 0:00:44.5]} 62. e7 {[%clk 0:00:02.5]}
62... Ra8 {[%clk 0:00:43.2]} 63. Kd7 {[%clk 0:00:02.9]} 63... g5 {[%clk
0:00:43.2]} 64. e8=Q {[%clk 0:00:02.7]} 64... Rxe8 {[%clk 0:00:43.5]} 65. Kxe8
{[%clk 0:00:03.6]} 65... g4 {[%clk 0:00:44.1]} 0-1